fUSD/lending_fUSD_20260625
["ID","MTS","AMOUNT","RATE_DAILY","PERIOD"]
[426428879,1782380692000,-300.0,0.0001386,2]
[426428878,1782380692000,-300.0,0.0001386,2]
[426428875,1782380692000,-600.0,0.0001386,2]
[426428877,1782380692000,-639.63352104,0.0001386,2]
[426428880,1782380692000,-300.0,0.0001386,2]
[426428883,1782380692000,-200.0,0.0001386,2]
[426428884,1782380692000,-200.0,0.0001386,2]
[426428881,1782380692000,-300.0,0.0001386,2]
[426428886,1782380692000,-200.0,0.0001386,2]
[426428885,1782380692000,-200.0,0.0001386,2]
[426428887,1782380692000,-267.97465902,0.0001386,2]
[426428882,1782380692000,-400.09937219,0.0001386,2]
[426428888,1782380696000,160.0,0.00012712,2]
[426428889,1782380702000,151.0,0.00012755,2]
[426428890,1782380708000,309.0,0.00012755,2]
[426428891,1782380709000,500.0,0.00013698,2]
[426428893,1782380710000,589.73392773,0.00013698,2]
[426428892,1782380710000,500.0,0.00013698,2]
[426428894,1782380711000,171.0,0.00028724,30]
[426428896,1782380714000,456.43569031,0.00029863,60]
[426428895,1782380714000,575.32732115,0.00029863,60]
[426428897,1782380729000,175.0,0.00028724,30]
[426428903,1782380746000,-300.0,0.00014125,2]
[426428904,1782380746000,-311.0,0.00014145,2]
[426428906,1782380746000,-500.0,0.00014164,2]
[426428899,1782380746000,-318.0,0.00014104,2]
[426428905,1782380746000,-312.0,0.00014145,2]
[426428900,1782380746000,-309.0,0.0001411,2]
[426428901,1782380746000,-314.0,0.00014117,2]
[426428898,1782380746000,-166.66,0.00014086,2]
[426428902,1782380746000,-600.0,0.00014125,2]
[426428908,1782380746000,-600.0,0.00014351,2]
[426428909,1782380746000,-600.0,0.00014351,2]
[426428910,1782380746000,-300.0,0.00014351,2]
[426428916,1782380746000,-18538.7676059,0.0001473,2]
[426428915,1782380746000,-151.0,0.0001463,2]
[426428918,1782380746000,-200.0,0.0001488,2]
[426428913,1782380746000,-166.66,0.0001436,2]
[426428907,1782380746000,-600.0,0.00014351,2]
[426428911,1782380746000,-300.0,0.00014351,2]
[426428917,1782380746000,-292.75901,0.0001488,2]
[426428914,1782380746000,-552.91714351,0.00014515,2]
[426428912,1782380746000,-300.0,0.00014351,2]
[426428928,1782380747000,-448936.02441438,0.00015,2]
[426428927,1782380747000,-1083.9738953,0.00014999,5]
[426428926,1782380747000,-1083.97389531,0.00014999,5]
[426428924,1782380747000,-292.75901,0.0001497,2]
[426428925,1782380747000,-150.0,0.00014998,2]
[426428922,1782380747000,-292.759,0.0001492,2]
[426428921,1782380747000,-3076.0,0.000149,5]
[426428919,1782380747000,-205.84136639,0.000149,2]
[426428920,1782380747000,-24249.94705001,0.000149,3]
[426428923,1782380747000,-352.3976092,0.0001495,2]
[426428929,1782380753000,248.89,0.00029931,30]
[426428930,1782380755000,157.82,0.00029931,30]
[426428931,1782380756000,157.82,0.00030521,30]
[426428933,1782380757000,157.82,0.00031112,30]
[426428932,1782380757000,384922.1248,0.000126,2]
[426428934,1782380759000,163.0,0.00028724,30]
[426428935,1782380789000,168.0,0.00028724,30]
[426428936,1782380793000,2500.0,0.000126,2]
[426428937,1782380808000,171.0,0.00028724,30]
[426428938,1782380824000,1500000.0,0.000126,2]
[426428939,1782380826000,156.0,0.00028724,30]
[426428940,1782380827000,158.05,0.00029931,30]
[426428941,1782380828000,158.05,0.00030521,30]
[426428942,1782380829000,158.05,0.00031112,30]
[426428944,1782380837000,157.82,0.00029931,30]
[426428945,1782380838000,157.82,0.00030606,30]
[426428946,1782380845000,169.0,0.00028724,30]
[426428947,1782380863000,156.0,0.00028724,30]
[426428948,1782380864000,156.0,0.00029724,30]
[426428949,1782380866000,156.0,0.00030724,30]
[426428950,1782380895000,158.06,0.00029931,30]
[426428951,1782380900000,156.97686179,0.00028724,30]
[426428952,1782380915000,165.19,0.00029931,30]
[426428953,1782380916000,165.19,0.00030606,30]
[426428954,1782380917000,165.0,0.00028724,30]
[426428955,1782380923000,15000.0,0.0001,30]
[426428956,1782380954000,350.0,0.00031192,30]
[426428957,1782380959000,158.06,0.00029931,30]
[426428958,1782380960000,158.06,0.00030521,30]
[426428959,1782380983000,161.5,0.00029931,30]
[426428962,1782381026000,158.05,0.00029931,30]
[426428961,1782381026000,159.66,0.00029931,30]
[426428990,1782381032000,-312.0,0.000141,2]
[426428984,1782381032000,-309.0,0.000141,2]
[426428988,1782381032000,-319.0,0.000141,2]
[426428992,1782381032000,-319.0,0.000141,2]
[426428991,1782381032000,-151.0,0.000141,2]
[426428993,1782381032000,-316.0,0.000141,2]
[426428997,1782381032000,-313.0,0.000141,2]
[426429004,1782381032000,-315.0,0.000141,2]
[426429005,1782381032000,-316.0,0.000141,2]
[426429000,1782381032000,-152.0,0.000141,2]
[426429002,1782381032000,-321.0,0.000141,2]
[426428994,1782381032000,-151.0,0.000141,2]
[426429003,1782381032000,-151.0,0.000141,2]
[426428999,1782381032000,-318.0,0.000141,2]
[426428996,1782381032000,-319.0,0.000141,2]
[426429006,1782381032000,-321.0,0.000141,2]
[426429001,1782381032000,-309.0,0.000141,2]
[426428985,1782381032000,-151.0,0.000141,2]
[426428983,1782381032000,-321.0,0.000141,2]
[426428979,1782381032000,-150.0,0.000141,2]
[426428965,1782381032000,-152.0,0.000141,2]
[426428967,1782381032000,-151.0,0.000141,2]
[426428968,1782381032000,-151.0,0.000141,2]
[426428966,1782381032000,-151.0,0.000141,2]
[426428972,1782381032000,-317.0,0.000141,2]
[426428970,1782381032000,-314.0,0.000141,2]
[426428974,1782381032000,-150.0,0.000141,2]
[426428971,1782381032000,-151.0,0.000141,2]
[426428969,1782381032000,-151.0,0.000141,2]
[426428973,1782381032000,-318.0,0.000141,2]
[426428975,1782381032000,-314.0,0.000141,2]
[426428977,1782381032000,-255.84960975,0.000141,2]
[426428976,1782381032000,-63.15039025,0.000141,2]
[426428982,1782381032000,-153.0,0.000141,2]
[426428978,1782381032000,-311.0,0.000141,2]
[426428981,1782381032000,-313.0,0.000141,2]
[426428980,1782381032000,-314.0,0.000141,2]
[426428986,1782381032000,-319.0,0.000141,2]
[426429008,1782381032000,-316.0,0.000141,2]
[426429019,1782381032000,-160.0,0.00014102,2]
[426429010,1782381032000,-150.0,0.000141,2]
[426429033,1782381032000,-1018.53858581,0.000148,5]
[426429031,1782381032000,-900.0,0.000147,5]
[426429035,1782381032000,-292.759,0.0001485,2]
[426429034,1782381032000,-81.46141419,0.000148,5]
[426429039,1782381032000,-295.636853,0.00014899,2]
[426429036,1782381032000,-140.24698915,0.0001485,2]
[426429040,1782381032000,-237.1693763,0.00014899,2]
[426429037,1782381032000,-152.51202085,0.0001485,2]
[426429038,1782381032000,-292.75901,0.0001486,2]
[426429041,1782381032000,-217.77004874,0.00014899,2]
[426429042,1782381032000,-500.0,0.00014899,2]
[426429044,1782381032000,-466.01578513,0.00014899,2]
[426429043,1782381032000,-500.48690598,0.00014899,2]
[426429045,1782381032000,-33.98421487,0.00014899,2]
[426429047,1782381032000,-988.85578513,0.000149,2]
[426429046,1782381032000,-200.0,0.000149,5]
[426429007,1782381032000,-151.0,0.000141,2]
[426429032,1782381032000,-151.27,0.00014703,2]
[426429028,1782381032000,-600.0,0.00014658,2]
[426429048,1782381032000,-648.0,0.000149,2]
[426429024,1782381032000,-400.0,0.000145,5]
[426429026,1782381032000,-600.0,0.000146,5]
[426429009,1782381032000,-314.0,0.000141,2]
[426429011,1782381032000,-310.0,0.000141,2]
[426429015,1782381032000,-316.0,0.000141,2]
[426429012,1782381032000,-314.0,0.000141,2]
[426429014,1782381032000,-150.0,0.000141,2]
[426429016,1782381032000,-334.12141196,0.000141,2]
[426429017,1782381032000,-316.0,0.00014101,2]
[426429013,1782381032000,-316.0,0.000141,2]
[426429020,1782381032000,-600.0,0.00014102,2]
[426429022,1782381032000,-317.0,0.00014104,2]
[426429021,1782381032000,-300.0,0.00014102,2]
[426429029,1782381032000,-300.0,0.00014658,2]
[426429030,1782381032000,-300.0,0.00014658,2]
[426429023,1782381032000,-200.0,0.000144,5]
[426429025,1782381032000,-552.92333235,0.00014518,2]
[426429027,1782381032000,-600.0,0.00014658,2]
[426429018,1782381032000,-319.0,0.00014101,2]
[426429116,1782381038000,-3207.32941142,0.0001523,2]
[426429110,1782381038000,-3207.32941142,0.00015195,2]
[426429109,1782381038000,-505.12081395,0.00015181,2]
[426429112,1782381038000,-10000.0,0.000152,2]
[426429122,1782381038000,-505.12081395,0.00015283,2]
[426429111,1782381038000,-2000.0,0.000152,2]
[426429115,1782381038000,-273.77645038,0.00015226,2]
[426429128,1782381038000,-3207.32941142,0.00015322,2]
[426429121,1782381038000,-3207.32941142,0.00015278,2]
[426429113,1782381038000,-6833.28782395,0.00015201,2]
[426429120,1782381038000,-505.12081395,0.0001527,2]
[426429124,1782381038000,-3207.32941142,0.00015295,2]
[426429123,1782381038000,-3207.32941142,0.00015294,2]
[426429126,1782381038000,-505.12081395,0.00015314,2]
[426429108,1782381038000,-292.5375299,0.00015103,2]
[426429118,1782381038000,-505.12081395,0.00015243,2]
[426429106,1782381038000,-10000.0,0.00015054,2]
[426429099,1782381038000,-10000.0,0.00014987,2]
[426429102,1782381038000,-151.0,0.00015,2]
[426429125,1782381038000,-3207.32941142,0.00015302,2]
[426429091,1782381038000,-195.22995514,0.00014899,2]
[426429088,1782381038000,-314.0,0.000141,2]
[426429090,1782381038000,-171.48021379,0.00014899,2]
[426429089,1782381038000,-328.51978621,0.00014899,2]
[426429092,1782381038000,-863.14421487,0.000149,2]
[426429093,1782381038000,-780.35088665,0.000149,2]
[426429094,1782381038000,-3221.57162121,0.000149,2]
[426429095,1782381038000,-1495998.07749214,0.000149,2]
[426429096,1782381038000,-403.94251993,0.000149,2]
[426429097,1782381038000,-5059.5490751,0.00014905,2]
[426429100,1782381038000,-2466.0,0.00015,5]
[426429105,1782381038000,-216.45114417,0.00015031,2]
[426429103,1782381038000,-512.75,0.00015,2]
[426429101,1782381038000,-5900184.02285079,0.00015,2]
[426429098,1782381038000,-389455.6291291,0.00014905,2]
[426429104,1782381038000,-753.55,0.00015,2]
[426429107,1782381038000,-151.13177012,0.00015068,2]
[426429129,1782381038000,-3207.32941142,0.00015328,2]
[426429119,1782381038000,-3207.32941142,0.00015262,2]
[426429138,1782381038000,-505.12081395,0.00015383,2]
[426429177,1782381038000,-2000.0,0.000157,2]
[426429179,1782381038000,-2000.0,0.000157,2]
[426429171,1782381038000,-300.0,0.0001551,2]
[426429182,1782381038000,-2000.0,0.000157,2]
[426429183,1782381038000,-2000.0,0.000157,2]
[426429186,1782381038000,-2000.0,0.000157,2]
[426429188,1782381038000,-2000.0,0.000157,2]
[426429173,1782381038000,-2000.0,0.000156,2]
[426429189,1782381038000,-2000.0,0.000157,2]
[426429205,1782381038000,-5028.81463217,0.000161,2]
[426429202,1782381038000,-5028.81463217,0.00016,2]
[426429198,1782381038000,-160.0,0.00016,8]
[426429195,1782381038000,-2000.0,0.000157,2]
[426429199,1782381038000,-300.0,0.00016,2]
[426429203,1782381038000,-199.12079302,0.00016,2]
[426429133,1782381038000,-505.12081395,0.00015378,2]
[426429191,1782381038000,-2068.0,0.000157,2]
[426429175,1782381038000,-2000.0,0.000156,2]
[426429193,1782381038000,-2000.0,0.000157,2]
[426429169,1782381038000,-600.0,0.0001551,2]
[426429137,1782381038000,-175.42733258,0.00015381,2]
[426429167,1782381038000,-322.18953647,0.00015509,2]
[426429127,1782381038000,-505.12081395,0.00015315,2]
[426429131,1782381038000,-505.12081395,0.00015371,2]
[426429135,1782381038000,-505.12081395,0.00015379,2]
[426429142,1782381038000,-15000.0,0.00015398,2]
[426429144,1782381038000,-6833.28782395,0.00015411,2]
[426429155,1782381038000,-3207.32941142,0.00015463,2]
[426429141,1782381038000,-505.12081395,0.00015389,2]
[426429163,1782381038000,-600.0,0.00015495,2]
[426429161,1782381038000,-505.12081395,0.00015467,2]
[426429150,1782381038000,-3207.32941142,0.0001546,2]
[426429147,1782381038000,-3207.32941142,0.00015433,2]
[426429159,1782381038000,-1703.89,0.00015464,2]
[426429153,1782381038000,-505.12081395,0.00015461,2]
[426429149,1782381038000,-3207.32941142,0.00015445,2]
[426429165,1782381038000,-300.0,0.00015495,2]
[426429157,1782381038000,-966.33,0.00015464,2]
[426429270,1782381039000,-1785.13,0.00017726,2]
[426429285,1782381039000,-189.86987819,0.00018,2]
[426429282,1782381039000,-1294.34158305,0.00018,2]
[426429280,1782381039000,-350.0,0.00018,2]
[426429266,1782381039000,-45435.19,0.00017572,2]
[426429268,1782381039000,-168.234652,0.0001764,2]
[426429264,1782381039000,-170.07,0.00017551,2]
[426429272,1782381039000,-2010.64,0.00017728,2]
[426429251,1782381039000,-262.0,0.0001726,2]
[426429278,1782381039000,-1212.02328487,0.00018,2]
[426429274,1782381039000,-380.035465,0.00017728,2]
[426429300,1782381039000,-172.743393,0.00018615,2]
[426429288,1782381039000,-1294.34158305,0.000182,2]
[426429287,1782381039000,-1808.68877903,0.000181,2]
[426429290,1782381039000,-189.86987819,0.000182,2]
[426429302,1782381039000,-250.0,0.00018728,2]
[426429301,1782381039000,-1294.34158305,0.000187,2]
[426429292,1782381039000,-487.09895291,0.00018211,2]
[426429293,1782381039000,-2677.7,0.00018219,2]
[426429296,1782381039000,-231.56754967,0.000184,2]
[426429295,1782381039000,-1294.34158305,0.000184,2]
[426429262,1782381039000,-170.07,0.00017551,2]
[426429276,1782381039000,-62920.62797204,0.00018,2]
[426429246,1782381039000,-552.92333235,0.00017094,2]
[426429230,1782381039000,-182.24,0.00016489,2]
[426429255,1782381039000,-4015.05532469,0.00017361,2]
[426429213,1782381039000,-167.76,0.00016255,2]
[426429211,1782381039000,-5397.84,0.00016116,2]
[426429207,1782381039000,-5091.65,0.00016116,2]
[426429209,1782381039000,-150.99,0.00016116,2]
[426429217,1782381039000,-359.72340551,0.00016334,2]
[426429215,1782381039000,-5028.81463217,0.000163,2]
[426429220,1782381039000,-5028.81463217,0.000164,2]
[426429226,1782381039000,-209.26,0.00016465,2]
[426429228,1782381039000,-200.76,0.00016471,2]
[426429238,1782381039000,-753.55,0.000168,2]
[426429232,1782381039000,-162.37,0.00016574,2]
[426429222,1782381039000,-262.0,0.00016438,2]
[426429235,1782381039000,-172.23,0.00016712,2]
[426429234,1782381039000,-5028.81463217,0.000166,2]
[426429224,1782381039000,-343.7590191,0.00016438,2]
[426429240,1782381039000,-5028.81463217,0.000168,2]
[426429242,1782381039000,-5028.81463217,0.000169,2]
[426429299,1782381039000,-306.750389,0.00018615,2]
[426429244,1782381039000,-420.56619115,0.00017094,2]
[426429257,1782381039000,-175.42733258,0.00017381,2]
[426429253,1782381039000,-5028.81463217,0.000173,2]
[426429248,1782381039000,-5028.81463217,0.000171,2]
[426429260,1782381039000,-5028.81463217,0.000174,2]
[426429249,1782381039000,-307.64,0.0001725,2]
[426429298,1782381039000,-1294.34158305,0.000185,2]
[426429338,1782381039000,-1000.0,0.00019178,2]
[426429303,1782381039000,-221.0,0.00018728,2]
[426429334,1782381039000,-1000.0,0.00019178,2]
[426429331,1782381039000,-208473.80352705,0.00019,2]
[426429330,1782381039000,-191.53036183,0.00019,3]
[426429335,1782381039000,-1000.0,0.00019178,2]
[426429337,1782381039000,-1000.0,0.00019178,2]
[426429336,1782381039000,-1000.0,0.00019178,2]
[426429339,1782381039000,-760.5431842,0.00019178,2]
[426429340,1782381039000,-20518.94,0.00019178,2]
[426429342,1782381039000,-162.69,0.00019355,7]
[426429341,1782381039000,-1294.34158305,0.000193,2]
[426429343,1782381039000,-175.42733258,0.00019381,2]
[426429350,1782381039000,-552.92333235,0.0001967,2]
[426429348,1782381039000,-228.48,0.000195,9]
[426429344,1782381039000,-543.0,0.00019452,2]
[426429345,1782381039000,-628.0,0.00019452,2]
[426429304,1782381039000,-209.947,0.00018728,2]
[426429349,1782381039000,-2677.7,0.00019589,2]
[426429347,1782381039000,-1294.34158305,0.000195,2]
[426429352,1782381039000,-162.37,0.00019889,2]
[426429351,1782381039000,-1294.34158305,0.000197,2]
[426429355,1782381039000,-170606.29266768,0.0001995,15]
[426429353,1782381039000,-185.43316387,0.000199,2]
[426429354,1782381039000,-2763.68585661,0.00019949,7]
[426429333,1782381039000,-1294.34158305,0.000191,2]
[426429332,1782381039000,-552.30839366,0.00019095,2]
[426429346,1782381039000,-596.0,0.00019452,2]
[426429327,1782381039000,-9953.73707221,0.00019,2]
[426429306,1782381039000,-150.758,0.00018728,2]
[426429314,1782381039000,-191.0,0.00018728,2]
[426429307,1782381039000,-289.569,0.00018728,2]
[426429305,1782381039000,-150.0,0.00018728,2]
[426429308,1782381039000,-150.299,0.00018728,2]
[426429310,1782381039000,-195.784,0.00018728,2]
[426429309,1782381039000,-250.0,0.00018728,2]
[426429311,1782381039000,-167.9,0.00018728,2]
[426429312,1782381039000,-250.0,0.00018728,2]
[426429316,1782381039000,-165.813,0.00018758,2]
[426429315,1782381039000,-3567.42,0.00018758,2]
[426429313,1782381039000,-249.496,0.00018728,2]
[426429317,1782381039000,-1361.0,0.00018758,2]
[426429328,1782381039000,-2388.10510472,0.00019,2]
[426429324,1782381039000,-935.0,0.00018758,2]
[426429321,1782381039000,-150.0,0.00018758,2]
[426429323,1782381039000,-3649.0,0.00018758,2]
[426429322,1782381039000,-150.0,0.00018758,2]
[426429318,1782381039000,-491.0,0.00018758,2]
[426429325,1782381039000,-753.55,0.000189,2]
[426429320,1782381039000,-1235.844,0.00018758,2]
[426429319,1782381039000,-1277.0,0.00018758,2]
[426429326,1782381039000,-1294.34158305,0.000189,2]
[426429329,1782381039000,-1144.1781529,0.00019,2]
[426429356,1782381040000,-2842.74386511,0.0001995,15]
[426429363,1782381042000,-116.32070518,0.00018758,2]
[426429362,1782381042000,-290.721547,0.00017728,2]
[426429361,1782381042000,-315.0,0.000141,2]
[426429364,1782381043000,-34.67929482,0.00018758,2]
[426429366,1782381043000,-916.7704065,0.0001995,15]
[426429368,1782381043000,-1034.75800988,0.0001995,15]
[426429365,1782381043000,-441.25326956,0.0001995,15]
[426429380,1782381047000,-428.92373647,0.0001995,15]
[426429379,1782381047000,-253.52,0.0001995,15]
[426429377,1782381047000,-217.356,0.00018758,2]
[426429376,1782381047000,-316.0,0.00014288,2]
[426429375,1782381047000,-150.0,0.000141,2]
[426429378,1782381047000,-245.91852614,0.0001995,15]
[426429384,1782381089000,165.31,0.00029931,30]
[426429386,1782381097000,276.39,0.00030456,30]
[426429385,1782381097000,276.39,0.00029931,30]
[426429387,1782381098000,276.39,0.00030981,30]
[426429389,1782381102000,207.38,0.00030456,30]
[426429388,1782381102000,207.38,0.00029931,30]
[426429390,1782381103000,207.38,0.00030981,30]
[426429393,1782381166000,151.29,0.00029931,30]
[426429394,1782381176000,162.92,0.00029931,30]
[426429395,1782381177000,162.92,0.00030606,30]
[426429396,1782381180000,158.14,0.00029931,30]
[426429397,1782381201000,429.764623,0.00023169,120]
[426429398,1782381211000,169.59,0.00029931,30]
[426429399,1782381227000,214.882312,0.000229,120]
[426429400,1782381246000,160.83,0.00029931,30]
[426429401,1782381248000,160.83,0.00030718,30]
[426429402,1782381257000,159.2,0.00029931,30]
[426429403,1782381281000,220.205877,0.00022363,120]
[426429404,1782381282000,4695.54716599,8e-05,2]
[426429405,1782381286000,175.39,0.00029931,30]
[426429406,1782381308000,157.11,0.00029931,30]
[426429407,1782381308000,166.85,0.00029931,30]
[426429408,1782381308000,163.96,0.00029931,30]
[426429409,1782381308000,157.11,0.00030718,30]
[426429410,1782381309000,163.96,0.00030606,30]
[426429411,1782381313000,167.76,0.00029931,30]
[426429413,1782381330000,155.2,0.00029931,30]
[426429412,1782381330000,168.37,0.00029931,30]
[426429414,1782381337000,171.88,0.00029931,30]
[426429415,1782381338000,158.36,0.00029931,30]
[426429417,1782381370000,167.37,0.00029931,30]
[426429420,1782381394000,163.89,0.00029931,30]
[426429419,1782381394000,160.6,0.00029931,30]
[426429421,1782381405000,169.37,0.00029931,30]
[426429426,1782381459000,161.02,0.00029931,30]
[426429431,1782381465000,160.2,0.00029931,30]
[426429432,1782381478000,168.37,0.00029931,30]
[426429433,1782381522000,158.49,0.00029931,30]
[426429434,1782381535000,161.63,0.00029931,30]
[426429435,1782381549000,169.37,0.00029931,30]
[426429436,1782381553000,151.0,0.00028713,30]
[426429437,1782381577000,162.39,0.00029931,30]
[426429438,1782381578000,158.98,0.00029931,30]
[426429439,1782381583000,158.0,0.00028691,30]
[426429440,1782381585000,250.0,0.00014,2]
[426429441,1782381600000,158.0,0.00028691,30]
[426429442,1782381653000,159.39,0.00029931,30]
[426429443,1782381655000,162.89,0.00029931,30]
[426429445,1782381721000,159.66,0.00029931,30]
[426429446,1782381727000,1000.0,0.00031,30]
[426429447,1782381732000,161.96,0.00029931,30]
[426429448,1782381774000,156.0,0.00028691,30]
[426429449,1782381775000,156.0,0.00029691,30]
[426429450,1782381777000,161.0,0.00030691,30]
[426429451,1782381796000,159.08,0.00029931,30]
[426429455,1782381810000,161.79,0.00029931,30]
[426429457,1782381817000,162.89,0.00029931,30]
[426429456,1782381817000,159.03,0.00029931,30]
[426429458,1782381833000,159.66,0.00029931,30]
[426429460,1782381885000,161.8,0.00029931,30]
[426429461,1782381903000,159.03,0.00029931,30]
[426429464,1782381952000,151.0,0.00014,2]
[426429468,1782382192000,166.66,0.00013482,2]
[426429467,1782382192000,166.66,0.00013204,2]
[426429469,1782382193000,166.66,0.0001376,2]
[426429509,1782382232000,-134.74697168,0.00014447,2]
[426429512,1782382232000,-313.0,0.00014447,2]
[426429506,1782382232000,-136.17506861,0.00014447,2]
[426429503,1782382232000,-209.00818036,0.00014447,2]
[426429502,1782382232000,-390.99181964,0.00014447,2]
[426429504,1782382232000,-600.0,0.00014447,2]
[426429510,1782382232000,-151.0,0.00014447,2]
[426429507,1782382232000,-179.25302832,0.00014447,2]
[426429513,1782382232000,-316.0,0.00014447,2]
[426429517,1782382232000,-317.0,0.00014447,2]
[426429515,1782382232000,-282.93856272,0.00014447,2]
[426429514,1782382232000,-151.0,0.00014447,2]
[426429518,1782382232000,-13.31284501,0.00014447,2]
[426429526,1782382232000,-260.44144039,0.00014447,2]
[426429516,1782382232000,-27.06143728,0.00014447,2]
[426429520,1782382232000,-318.0,0.00014447,2]
[426429521,1782382232000,-315.0,0.00014447,2]
[426429519,1782382232000,-136.68715499,0.00014447,2]
[426429505,1782382232000,-176.82493139,0.00014447,2]
[426429511,1782382232000,-315.0,0.00014447,2]
[426429497,1782382232000,-300.0,0.00014447,2]
[426429479,1782382232000,-166.66,0.00014038,2]
[426429498,1782382232000,-300.0,0.00014447,2]
[426429523,1782382232000,-318.0,0.00014447,2]
[426429480,1782382232000,-151.0,0.00014129,2]
[426429484,1782382232000,-151.0,0.00014388,2]
[426429481,1782382232000,-33.36307539,0.00014316,2]
[426429482,1782382232000,-133.29692461,0.00014316,2]
[426429485,1782382232000,-23.89912509,0.00014388,2]
[426429483,1782382232000,-182.84,0.00014388,2]
[426429486,1782382232000,-126.10087491,0.00014388,2]
[426429487,1782382232000,-150.0,0.00014388,2]
[426429489,1782382232000,-112.93398666,0.00014389,2]
[426429488,1782382232000,-38.06601334,0.00014389,2]
[426429500,1782382232000,-197.58560889,0.00014447,2]
[426429491,1782382232000,-93.94752516,0.0001441,2]
[426429493,1782382232000,-552.91999979,0.00014447,2]
[426429490,1782382232000,-151.0,0.00014393,2]
[426429492,1782382232000,-57.05247484,0.0001441,2]
[426429494,1782382232000,-300.0,0.00014447,2]
[426429495,1782382232000,-317.73101279,0.00014447,2]
[426429496,1782382232000,-282.26898721,0.00014447,2]
[426429499,1782382232000,-102.41439111,0.00014447,2]
[426429524,1782382232000,-54.55855961,0.00014447,2]
[426429544,1782382232000,-151.0,0.00014447,2]
[426429529,1782382232000,-319.0,0.00014447,2]
[426429558,1782382232000,-309.0,0.00014447,2]
[426429555,1782382232000,-150.0,0.00014447,2]
[426429559,1782382232000,-152.0,0.00014447,2]
[426429564,1782382232000,-313.0,0.00014447,2]
[426429565,1782382232000,-150.0,0.00014447,2]
[426429561,1782382232000,-318.0,0.00014447,2]
[426429560,1782382232000,-309.0,0.00014447,2]
[426429562,1782382232000,-150.0,0.00014447,2]
[426429567,1782382232000,-317.0,0.00014447,2]
[426429572,1782382232000,-309.0,0.00014447,2]
[426429575,1782382232000,-310.0,0.00014447,2]
[426429570,1782382232000,-312.0,0.00014447,2]
[426429571,1782382232000,-317.0,0.00014447,2]
[426429568,1782382232000,-309.0,0.00014447,2]
[426429569,1782382232000,-151.0,0.00014447,2]
[426429574,1782382232000,-312.0,0.00014447,2]
[426429573,1782382232000,-151.0,0.00014447,2]
[426429577,1782382232000,-316.0,0.00014447,2]
[426429522,1782382232000,-150.0,0.00014447,2]
[426429566,1782382232000,-309.0,0.00014447,2]
[426429557,1782382232000,-316.0,0.00014447,2]
[426429563,1782382232000,-315.0,0.00014447,2]
[426429552,1782382232000,-152.0,0.00014447,2]
[426429535,1782382232000,-316.0,0.00014447,2]
[426429533,1782382232000,-312.0,0.00014447,2]
[426429531,1782382232000,-150.0,0.00014447,2]
[426429538,1782382232000,-321.0,0.00014447,2]
[426429537,1782382232000,-152.0,0.00014447,2]